[Event "*** Titled Tuesday Blitz"]
[Site "Chess.com"]
[Date "2019.04.02"]
[Round "4"]
[White "pedro_gines"]
[Black "GukeshDommaraju"]
[Result "0-1"]
[WhiteElo "2435"]
[BlackElo "2618"]
[TimeControl "180+2"]
[EndTime "14:46:31 PDT"]
[Termination "GukeshDommaraju won by resignation"]

1. d4 {[%clk 0:03:01.9]} 1... Nf6 {[%clk 0:02:58]} 2. Nf3 {[%clk 0:03:02.9]}
2... g6 {[%clk 0:02:57.7]} 3. g3 {[%clk 0:03:04]} 3... Bg7 {[%clk 0:02:58.8]} 4.
Bg2 {[%clk 0:03:05.9]} 4... O-O {[%clk 0:03:00]} 5. O-O {[%clk 0:03:04.8]} 5...
d5 {[%clk 0:03:01.3]} 6. c4 {[%clk 0:03:03.9]} 6... c6 {[%clk 0:03:02]} 7. cxd5
{[%clk 0:03:03.4]} 7... cxd5 {[%clk 0:03:03]} 8. Nc3 {[%clk 0:03:04.4]} 8... Ne4
{[%clk 0:03:03.8]} 9. Bf4 {[%clk 0:03:04.4]} 9... Nxc3 {[%clk 0:03:03.1]} 10.
bxc3 {[%clk 0:03:06.3]} 10... Nc6 {[%clk 0:03:04.4]} 11. Nd2 {[%clk 0:03:06.3]}
11... Bf5 {[%clk 0:02:53.7]} 12. e4 {[%clk 0:02:59.7]} 12... dxe4 {[%clk
0:02:54.2]} 13. Nxe4 {[%clk 0:03:01.6]} 13... Rc8 {[%clk 0:02:44.8]} 14. Nc5
{[%clk 0:02:58]} 14... b6 {[%clk 0:02:43.9]} 15. Na6 {[%clk 0:02:46.3]} 15...
Na5 {[%clk 0:02:28.5]} 16. Rc1 {[%clk 0:02:37]} 16... Nc4 {[%clk 0:02:18.4]} 17.
Nb4 {[%clk 0:02:36]} 17... Qd7 {[%clk 0:02:14.4]} 18. Re1 {[%clk 0:02:33]} 18...
a5 {[%clk 0:02:12.9]} 19. Nd5 {[%clk 0:02:32]} 19... Be6 {[%clk 0:01:57.5]} 20.
Nxe7+ {[%clk 0:02:19.5]} 20... Qxe7 {[%clk 0:01:58.5]} 21. d5 {[%clk 0:02:21]}
21... Kh8 {[%clk 0:01:47.1]} 22. Qe2 {[%clk 0:01:59.5]} 22... g5 {[%clk
0:01:41]} 23. Bd2 {[%clk 0:01:46.4]} 23... Nxd2 {[%clk 0:01:41.7]} 24. Qxd2
{[%clk 0:01:42.6]} 24... Qd8 {[%clk 0:01:42.5]} 25. Qb2 {[%clk 0:01:15.5]} 25...
Bf5 {[%clk 0:01:41.3]} 0-1

[Event "*** Titled Tuesday Blitz"]
[Site "Chess.com"]
[Date "2019.04.02"]
[Round "4"]
[White "adriangschnitzer"]
[Black "suyu28"]
[Result "0-1"]
[WhiteElo "2398"]
[BlackElo "2559"]
[TimeControl "180+2"]
[EndTime "14:46:39 PDT"]
[Termination "suyu28 won by resignation"]

1. c4 {[%clk 0:03:01.9]} 1... e5 {[%clk 0:02:59.1]} 2. Nc3 {[%clk 0:02:59.9]}
2... Nc6 {[%clk 0:02:59.9]} 3. Nf3 {[%clk 0:02:58.5]} 3... Nf6 {[%clk
0:03:00.8]} 4. e3 {[%clk 0:02:58.6]} 4... Bb4 {[%clk 0:02:51.1]} 5. Qc2 {[%clk
0:02:58.5]} 5... O-O {[%clk 0:02:51.2]} 6. Nd5 {[%clk 0:02:57.6]} 6... Be7
{[%clk 0:02:34]} 7. Ng5 {[%clk 0:02:42.8]} 7... g6 {[%clk 0:02:32.6]} 8. Nxf6+
{[%clk 0:02:30.1]} 8... Bxf6 {[%clk 0:02:32.9]} 9. Ne4 {[%clk 0:02:31.7]} 9...
Bg7 {[%clk 0:02:34]} 10. a3 {[%clk 0:02:28.8]} 10... a5 {[%clk 0:02:34]} 11. Be2
{[%clk 0:02:26.4]} 11... d6 {[%clk 0:02:33.7]} 12. b3 {[%clk 0:02:24.9]} 12...
f5 {[%clk 0:02:30.4]} 13. Nc3 {[%clk 0:02:25]} 13... Be6 {[%clk 0:02:29.3]} 14.
Bb2 {[%clk 0:02:25.2]} 14... Qd7 {[%clk 0:02:25.4]} 15. d3 {[%clk 0:02:24]}
15... Rae8 {[%clk 0:02:19.9]} 16. Bf3 {[%clk 0:02:23.7]} 16... Nd8 {[%clk
0:02:08.1]} 17. Bd5 {[%clk 0:02:22.4]} 17... c6 {[%clk 0:02:08.3]} 18. Bxe6+
{[%clk 0:02:21.9]} 18... Nxe6 {[%clk 0:02:10.2]} 19. O-O {[%clk 0:02:04.3]}
19... f4 {[%clk 0:02:00.3]} 20. Ne4 {[%clk 0:01:50.7]} 20... f3 {[%clk
0:01:58.9]} 21. b4 {[%clk 0:01:20.4]} 21... d5 {[%clk 0:01:54.7]} 22. cxd5
{[%clk 0:01:15.6]} 22... cxd5 {[%clk 0:01:55.5]} 23. Nc5 {[%clk 0:01:16.7]}
23... Nxc5 {[%clk 0:01:55.9]} 24. Qxc5 {[%clk 0:01:12.5]} 24... Qg4 {[%clk
0:01:56.3]} 25. Qxd5+ {[%clk 0:01:03.9]} 25... Kh8 {[%clk 0:01:55.7]} 0-1

[Event "*** Titled Tuesday Blitz"]
[Site "Chess.com"]
[Date "2019.04.02"]
[Round "4"]
[White "Komissarov_alex"]
[Black "FearNoEvil12"]
[Result "0-1"]
[WhiteElo "2092"]
[BlackElo "2012"]
[TimeControl "180+2"]
[EndTime "14:46:57 PDT"]
[Termination "FearNoEvil12 won on time"]

1. d4 {[%clk 0:03:01.9]} 1... b5 {[%clk 0:02:59.7]} 2. e4 {[%clk 0:03:00]} 2...
a6 {[%clk 0:03:01]} 3. Nf3 {[%clk 0:02:59.3]} 3... Bb7 {[%clk 0:03:02.5]} 4. Bd3
{[%clk 0:02:56.5]} 4... e6 {[%clk 0:03:03.7]} 5. c3 {[%clk 0:02:43.7]} 5... Nf6
{[%clk 0:03:04.8]} 6. e5 {[%clk 0:02:42.7]} 6... Nd5 {[%clk 0:03:04.6]} 7. Nbd2
{[%clk 0:02:40.4]} 7... d6 {[%clk 0:03:04.2]} 8. Ne4 {[%clk 0:02:38.5]} 8... Nd7
{[%clk 0:03:03.9]} 9. Bg5 {[%clk 0:02:36.1]} 9... f6 {[%clk 0:02:59.4]} 10. Nh4
{[%clk 0:02:03.8]} 10... Qe7 {[%clk 0:02:42.6]} 11. Qh5+ {[%clk 0:01:48.4]}
11... Qf7 {[%clk 0:02:39.3]} 12. Qxf7+ {[%clk 0:01:22.6]} 12... Kxf7 {[%clk
0:02:40.2]} 13. exf6 {[%clk 0:01:20.7]} 13... gxf6 {[%clk 0:02:40.1]} 14. Bd2
{[%clk 0:01:19]} 14... f5 {[%clk 0:02:31.1]} 15. Ng5+ {[%clk 0:01:14]} 15... Kf6
{[%clk 0:02:31.1]} 16. O-O-O {[%clk 0:01:05.4]} 16... h6 {[%clk 0:02:25.3]} 17.
Nxe6 {[%clk 0:00:52]} 17... Kxe6 {[%clk 0:02:23.8]} 18. Bxf5+ {[%clk 0:00:50.2]}
18... Ke7 {[%clk 0:02:23.4]} 19. Rhe1+ {[%clk 0:00:27.9]} 19... Kd8 {[%clk
0:02:23.3]} 20. Ng6 {[%clk 0:00:22.5]} 20... Rg8 {[%clk 0:02:11.2]} 21. Nxf8
{[%clk 0:00:21.6]} 21... Rxf8 {[%clk 0:02:11.2]} 22. Bxd7 {[%clk 0:00:19.7]}
22... Kxd7 {[%clk 0:02:11.2]} 23. Bxh6 {[%clk 0:00:19.7]} 23... Rxf2 {[%clk
0:02:11.8]} 0-1

[Event "*** Titled Tuesday Blitz"]
[Site "Chess.com"]
[Date "2019.04.02"]
[Round "4"]
[White "fu24"]
[Black "gonzaga23"]
[Result "1-0"]
[WhiteElo "2520"]
[BlackElo "2356"]
[TimeControl "180+2"]
[EndTime "14:47:20 PDT"]
[Termination "fu24 won by resignation"]

1. d4 {[%clk 0:03:01.9]} 1... Nf6 {[%clk 0:02:58.4]} 2. Bg5 {[%clk 0:03:02.2]}
2... d5 {[%clk 0:02:57.5]} 3. Bxf6 {[%clk 0:03:02.1]} 3... gxf6 {[%clk
0:02:57.5]} 4. c4 {[%clk 0:03:01]} 4... c6 {[%clk 0:02:55.8]} 5. Nc3 {[%clk
0:03:00.8]} 5... Bg7 {[%clk 0:02:49.3]} 6. e3 {[%clk 0:03:00.4]} 6... O-O {[%clk
0:02:49.5]} 7. g3 {[%clk 0:03:01.2]} 7... dxc4 {[%clk 0:02:45.5]} 8. Bxc4 {[%clk
0:03:01.7]} 8... Nd7 {[%clk 0:02:37.3]} 9. Bd3 {[%clk 0:03:02.5]} 9... Re8
{[%clk 0:02:30.7]} 10. Qh5 {[%clk 0:03:01.4]} 10... Nf8 {[%clk 0:02:31.9]} 11.
Rd1 {[%clk 0:02:58.5]} 11... Qb6 {[%clk 0:02:28.9]} 12. b3 {[%clk 0:02:57.5]}
12... Qb4 {[%clk 0:02:28.3]} 13. Ne2 {[%clk 0:02:56.1]} 13... Ng6 {[%clk
0:01:32.4]} 14. O-O {[%clk 0:02:55.2]} 14... Be6 {[%clk 0:01:23.3]} 15. Qf3
{[%clk 0:02:44.8]} 15... Rad8 {[%clk 0:01:22.6]} 16. h4 {[%clk 0:02:44.2]} 16...
Bd5 {[%clk 0:01:09.3]} 17. Nxd5 {[%clk 0:02:43.9]} 17... Rxd5 {[%clk 0:01:09.9]}
18. h5 {[%clk 0:02:43.6]} 18... Nf8 {[%clk 0:01:11.2]} 19. Rc1 {[%clk
0:02:16.1]} 19... e5 {[%clk 0:01:07.6]} 20. Bc4 {[%clk 0:02:13.8]} 20... Rd7
{[%clk 0:01:02.7]} 21. Qg4 {[%clk 0:02:12.1]} 21... h6 {[%clk 0:00:53.1]} 22.
Bd3 {[%clk 0:02:10.5]} 22... Qd6 {[%clk 0:00:36.8]} 23. Bf5 {[%clk 0:02:08.1]}
23... Rde7 {[%clk 0:00:35.5]} 24. Rfd1 {[%clk 0:02:09]} 24... Qc7 {[%clk
0:00:34.1]} 25. d5 {[%clk 0:02:07.1]} 25... Rd8 {[%clk 0:00:29.7]} 26. Nc3
{[%clk 0:02:05.8]} 26... a6 {[%clk 0:00:29.1]} 27. Ne4 {[%clk 0:02:02.1]} 27...
Rd6 {[%clk 0:00:12.6]} 28. Nxd6 {[%clk 0:02:00.1]} 28... Qxd6 {[%clk 0:00:13.1]}
29. dxc6 {[%clk 0:02:01.6]} 1-0

[Event "*** Titled Tuesday Blitz"]
[Site "Chess.com"]
[Date "2019.04.02"]
[Round "4"]
[White "Shant_Sargsyan"]
[Black "Eltarolo"]
[Result "1-0"]
[WhiteElo "2939"]
[BlackElo "2481"]
[TimeControl "180+2"]
[EndTime "14:47:26 PDT"]
[Termination "Shant_Sargsyan won on time"]

1. b3 {[%clk 0:03:01.7]} 1... b6 {[%clk 0:02:58.6]} 2. Bb2 {[%clk 0:03:03.6]}
2... Bb7 {[%clk 0:03:00.1]} 3. Nf3 {[%clk 0:03:04.4]} 3... Nf6 {[%clk
0:03:00.4]} 4. e3 {[%clk 0:03:05.5]} 4... e6 {[%clk 0:03:01.5]} 5. c4 {[%clk
0:03:06.5]} 5... Be7 {[%clk 0:03:00.1]} 6. Be2 {[%clk 0:03:07]} 6... O-O {[%clk
0:03:01]} 7. O-O {[%clk 0:03:08.9]} 7... c5 {[%clk 0:03:02.3]} 8. d4 {[%clk
0:03:10.2]} 8... d5 {[%clk 0:03:03.3]} 9. cxd5 {[%clk 0:03:11]} 9... Nxd5 {[%clk
0:03:03.2]} 10. dxc5 {[%clk 0:03:12.1]} 10... Bxc5 {[%clk 0:03:02.6]} 11. Nbd2
{[%clk 0:03:12.7]} 11... Nc6 {[%clk 0:02:56.4]} 12. a3 {[%clk 0:03:13.3]} 12...
Nf6 {[%clk 0:02:46.1]} 13. b4 {[%clk 0:03:13.7]} 13... Be7 {[%clk 0:02:46.9]}
14. Nc4 {[%clk 0:03:15]} 14... Qxd1 {[%clk 0:02:45.1]} 15. Rfxd1 {[%clk
0:03:16.9]} 15... Rfd8 {[%clk 0:02:46.9]} 16. Nfe5 {[%clk 0:03:17.8]} 16... Nxe5
{[%clk 0:02:45.9]} 17. Nxe5 {[%clk 0:03:19.7]} 17... Rxd1+ {[%clk 0:02:37.2]}
18. Rxd1 {[%clk 0:03:21.6]} 18... Rc8 {[%clk 0:02:38.4]} 19. Bf3 {[%clk
0:03:20.4]} 19... Bxf3 {[%clk 0:02:35.4]} 20. gxf3 {[%clk 0:03:22.3]} 20... Rc2
{[%clk 0:02:33.9]} 21. Bd4 {[%clk 0:03:21.3]} 21... Nd5 {[%clk 0:02:28.4]} 22.
e4 {[%clk 0:03:09.1]} 22... Nf4 {[%clk 0:02:26.7]} 23. Be3 {[%clk 0:03:09.8]}
23... Ne2+ {[%clk 0:01:31]} 24. Kf1 {[%clk 0:03:08.9]} 24... f6 {[%clk
0:01:07.5]} 25. Rd7 {[%clk 0:03:02.3]} 25... Kf8 {[%clk 0:01:04.7]} 26. Nd3
{[%clk 0:02:57.5]} 26... a5 {[%clk 0:01:02.4]} 27. Bxb6 {[%clk 0:02:54.6]} 27...
axb4 {[%clk 0:00:59.7]} 28. axb4 {[%clk 0:02:56.5]} 28... e5 {[%clk 0:00:27.7]}
29. Be3 {[%clk 0:02:46.7]} 29... g5 {[%clk 0:00:17.7]} 30. b5 {[%clk 0:02:43.3]}
30... Nf4 {[%clk 0:00:14.2]} 31. Bxf4 {[%clk 0:02:44.3]} 31... gxf4 {[%clk
0:00:15.1]} 32. b6 {[%clk 0:02:46.2]} 32... Rc3 {[%clk 0:00:08.8]} 33. b7 {[%clk
0:02:46.3]} 33... Rb3 {[%clk 0:00:09.6]} 34. Rc7 {[%clk 0:02:46.4]} 34... Kf7
{[%clk 0:00:06.4]} 35. Nc5 {[%clk 0:02:46.5]} 35... Rb1+ {[%clk 0:00:04.1]} 36.
Kg2 {[%clk 0:02:48.1]} 36... Rb5 {[%clk 0:00:03.2]} 37. Na6 {[%clk 0:02:49.4]}
1-0

[Event "*** Titled Tuesday Blitz"]
[Site "Chess.com"]
[Date "2019.04.02"]
[Round "4"]
[White "RegZryt"]
[Black "mlchen"]
[Result "1-0"]
[WhiteElo "2578"]
[BlackElo "2410"]
[TimeControl "180+2"]
[EndTime "14:47:30 PDT"]
[Termination "RegZryt won by resignation"]

1. d4 {[%clk 0:03:01.9]} 1... Nf6 {[%clk 0:03:00.8]} 2. c4 {[%clk 0:03:01.5]}
2... e6 {[%clk 0:03:02.2]} 3. Nf3 {[%clk 0:03:02.1]} 3... b6 {[%clk 0:03:03]} 4.
g3 {[%clk 0:03:02.3]} 4... Ba6 {[%clk 0:03:02.8]} 5. Qc2 {[%clk 0:03:03.1]} 5...
Be7 {[%clk 0:03:01.1]} 6. Bg2 {[%clk 0:03:03.8]} 6... O-O {[%clk 0:03:00]} 7. e4
{[%clk 0:02:59.4]} 7... d5 {[%clk 0:02:59]} 8. e5 {[%clk 0:02:55]} 8... Nfd7
{[%clk 0:02:56.5]} 9. cxd5 {[%clk 0:02:53.9]} 9... exd5 {[%clk 0:02:56.7]} 10.
Nc3 {[%clk 0:02:53.8]} 10... c6 {[%clk 0:02:44.1]} 11. h4 {[%clk 0:02:53.8]}
11... Re8 {[%clk 0:02:41.3]} 12. Ng5 {[%clk 0:02:47.3]} 12... Nf8 {[%clk
0:02:38.5]} 13. Qf5 {[%clk 0:02:39.2]} 13... Bf6 {[%clk 0:02:32.8]} 14. Be3
{[%clk 0:02:34.3]} 14... Bxg5 {[%clk 0:02:28.1]} 15. hxg5 {[%clk 0:02:35.4]}
15... Qd7 {[%clk 0:02:23.9]} 16. Qf3 {[%clk 0:02:31.1]} 16... Qe6 {[%clk
0:02:17.2]} 17. Bh3 {[%clk 0:02:30.4]} 17... Qe7 {[%clk 0:02:15.2]} 18. Bf5
{[%clk 0:02:29.1]} 18... g6 {[%clk 0:02:11.1]} 19. Bc2 {[%clk 0:02:29.5]} 19...
Qb4 {[%clk 0:02:10.4]} 20. O-O-O {[%clk 0:02:28.4]} 20... Nbd7 {[%clk
0:02:06.8]} 21. Rh4 {[%clk 0:02:21.3]} 21... Bc4 {[%clk 0:01:48.8]} 22. Rdh1
{[%clk 0:02:19.8]} 22... a5 {[%clk 0:01:49]} 23. Rxh7 {[%clk 0:02:08.6]} 23...
Nxh7 {[%clk 0:01:45.3]} 24. Rxh7 {[%clk 0:02:10.5]} 24... Nxe5 {[%clk
0:01:25.1]} 25. dxe5 {[%clk 0:01:57.7]} 25... d4 {[%clk 0:01:25.5]} 26. Qh1
{[%clk 0:01:34.9]} 26... Kf8 {[%clk 0:01:25.7]} 27. Bxd4 {[%clk 0:01:33.6]}
27... Red8 {[%clk 0:01:24.1]} 28. e6 {[%clk 0:01:28.5]} 28... Bxe6 {[%clk
0:00:53.5]} 29. Bf6 {[%clk 0:01:22.6]} 29... Ke8 {[%clk 0:00:42]} 30. Qxc6+
{[%clk 0:01:23.4]} 1-0

[Event "*** Titled Tuesday Blitz"]
[Site "Chess.com"]
[Date "2019.04.02"]
[Round "4"]
[White "bascheyaro"]
[Black "DoHoChess"]
[Result "1/2-1/2"]
[WhiteElo "2721"]
[BlackElo "2547"]
[TimeControl "180+2"]
[EndTime "14:47:31 PDT"]
[Termination "Game drawn by repetition"]

1. d4 {[%clk 0:03:01.9]} 1... Nf6 {[%clk 0:02:57.5]} 2. c4 {[%clk 0:03:03.3]}
2... e6 {[%clk 0:02:58.3]} 3. Nf3 {[%clk 0:03:04.6]} 3... d5 {[%clk 0:02:59.1]}
4. Nc3 {[%clk 0:03:05.7]} 4... Bb4 {[%clk 0:03:00.3]} 5. Bg5 {[%clk 0:03:06.5]}
5... dxc4 {[%clk 0:02:59]} 6. e3 {[%clk 0:03:07.2]} 6... b5 {[%clk 0:02:59.5]}
7. Be2 {[%clk 0:03:08.4]} 7... Bb7 {[%clk 0:02:56.1]} 8. O-O {[%clk 0:03:09.2]}
8... a6 {[%clk 0:02:57.2]} 9. Ne5 {[%clk 0:03:07.4]} 9... Nbd7 {[%clk
0:02:56.7]} 10. Bf3 {[%clk 0:03:07.8]} 10... Qc8 {[%clk 0:02:46.8]} 11. a4
{[%clk 0:02:51.8]} 11... Bxc3 {[%clk 0:02:25.4]} 12. bxc3 {[%clk 0:02:52]} 12...
Nxe5 {[%clk 0:02:24.4]} 13. dxe5 {[%clk 0:02:48.6]} 13... Nd5 {[%clk 0:02:21.4]}
14. axb5 {[%clk 0:02:39.7]} 14... axb5 {[%clk 0:02:21.9]} 15. Qd4 {[%clk
0:02:33.2]} 15... O-O {[%clk 0:02:19.2]} 16. e4 {[%clk 0:02:26.7]} 16... c5
{[%clk 0:01:58.4]} 17. Qd2 {[%clk 0:02:27.4]} 17... Nb6 {[%clk 0:01:48.4]} 18.
Bf6 {[%clk 0:02:28.2]} 18... gxf6 {[%clk 0:01:38.2]} 19. Rxa8 {[%clk 0:01:51.4]}
19... Bxa8 {[%clk 0:01:30.2]} 20. Qh6 {[%clk 0:01:20.1]} 20... fxe5 {[%clk
0:01:22.8]} 21. Qg5+ {[%clk 0:01:10.3]} 21... Kh8 {[%clk 0:01:23.3]} 22. Qf6+
{[%clk 0:01:11.7]} 22... Kg8 {[%clk 0:01:24.1]} 23. Rd1 {[%clk 0:01:04.6]} 23...
Nd7 {[%clk 0:01:15.3]} 24. Qg5+ {[%clk 0:01:01.9]} 24... Kh8 {[%clk 0:01:15.5]}
25. Qe7 {[%clk 0:01:00.6]} 25... Bc6 {[%clk 0:01:13.9]} 26. Rxd7 {[%clk
0:00:48.3]} 26... Bxd7 {[%clk 0:01:11.6]} 27. Qf6+ {[%clk 0:00:48.7]} 27... Kg8
{[%clk 0:01:12.5]} 28. Qg5+ {[%clk 0:00:50]} 28... Kh8 {[%clk 0:01:14.2]} 29.
Qf6+ {[%clk 0:00:51.3]} 29... Kg8 {[%clk 0:01:15.9]} 30. Qg5+ {[%clk 0:00:52.7]}
30... Kh8 {[%clk 0:01:17.6]} 31. Qf6+ {[%clk 0:00:54.2]} 31... Kg8 {[%clk
0:01:19.2]} 32. Qg5+ {[%clk 0:00:55.8]} 32... Kh8 {[%clk 0:01:20.9]} 1/2-1/2

[Event "*** Titled Tuesday Blitz"]
[Site "Chess.com"]
[Date "2019.04.02"]
[Round "4"]
[White "Kawhi_Leonard2"]
[Black "saraswathii"]
[Result "1-0"]
[WhiteElo "2217"]
[BlackElo "2233"]
[TimeControl "180+2"]
[EndTime "14:47:32 PDT"]
[Termination "Kawhi_Leonard2 won by resignation"]

1. e4 {[%clk 0:03:01.9]} 1... c5 {[%clk 0:02:59.2]} 2. Nf3 {[%clk 0:02:58]} 2...
e6 {[%clk 0:02:56.7]} 3. d4 {[%clk 0:02:58.9]} 3... cxd4 {[%clk 0:02:56]} 4.
Nxd4 {[%clk 0:03:00.8]} 4... Nf6 {[%clk 0:02:57.4]} 5. Nc3 {[%clk 0:03:02]} 5...
Nc6 {[%clk 0:02:58.8]} 6. Ndb5 {[%clk 0:03:02.3]} 6... Bb4 {[%clk 0:02:58.2]} 7.
a3 {[%clk 0:03:03]} 7... Bxc3+ {[%clk 0:02:54.1]} 8. Nxc3 {[%clk 0:03:04.3]}
8... d5 {[%clk 0:02:55.8]} 9. exd5 {[%clk 0:03:05.5]} 9... exd5 {[%clk
0:02:57.7]} 10. Bd3 {[%clk 0:03:06.1]} 10... d4 {[%clk 0:02:57.6]} 11. Ne2
{[%clk 0:03:06.8]} 11... O-O {[%clk 0:02:54.9]} 12. O-O {[%clk 0:03:07.5]} 12...
Qd5 {[%clk 0:02:47]} 13. Bf4 {[%clk 0:02:45.1]} 13... Bf5 {[%clk 0:02:43.8]} 14.
Re1 {[%clk 0:02:38.8]} 14... Rad8 {[%clk 0:02:35.6]} 15. Ng3 {[%clk 0:02:39]}
15... Bxd3 {[%clk 0:02:32.3]} 16. Qxd3 {[%clk 0:02:40.9]} 16... Rfe8 {[%clk
0:02:02.3]} 17. h3 {[%clk 0:02:34]} 17... Qc5 {[%clk 0:01:49.6]} 18. Ne4 {[%clk
0:02:04.5]} 18... Qf5 {[%clk 0:01:38.6]} 19. Nxf6+ {[%clk 0:02:00.1]} 19... Qxf6
{[%clk 0:01:40.5]} 20. Bc7 {[%clk 0:01:56.2]} 20... Rc8 {[%clk 0:01:37.9]} 21.
Bg3 {[%clk 0:01:54.2]} 21... h6 {[%clk 0:01:33.8]} 22. Re4 {[%clk 0:01:53.8]}
22... Red8 {[%clk 0:01:34]} 23. Rae1 {[%clk 0:01:53.4]} 23... Qg6 {[%clk
0:01:27]} 24. Qb5 {[%clk 0:01:35.8]} 24... b6 {[%clk 0:01:23.8]} 25. h4 {[%clk
0:01:24.3]} 25... Kh7 {[%clk 0:01:15.1]} 26. h5 {[%clk 0:01:24.2]} 26... Qg5
{[%clk 0:01:10]} 27. Qd3 {[%clk 0:01:04.1]} 27... Kg8 {[%clk 0:01:05.9]} 28. Bh4
{[%clk 0:01:05.1]} 28... Qxh5 {[%clk 0:00:57]} 29. Bxd8 {[%clk 0:01:07]} 1-0

[Event "*** Titled Tuesday Blitz"]
[Site "Chess.com"]
[Date "2019.04.02"]
[Round "4"]
[White "CzechmVIII"]
[Black "northridgehawk"]
[Result "1-0"]
[WhiteElo "2130"]
[BlackElo "2207"]
[TimeControl "180+2"]
[EndTime "14:47:48 PDT"]
[Termination "CzechmVIII won by resignation"]

1. e4 {[%clk 0:03:01.9]} 1... e5 {[%clk 0:02:59.3]} 2. Nf3 {[%clk 0:03:01.7]}
2... Nc6 {[%clk 0:03:00.5]} 3. Bb5 {[%clk 0:03:02.4]} 3... a6 {[%clk 0:03:02.1]}
4. Ba4 {[%clk 0:03:03.5]} 4... Nf6 {[%clk 0:03:04]} 5. O-O {[%clk 0:03:04.6]}
5... b5 {[%clk 0:03:05.9]} 6. Bb3 {[%clk 0:03:05]} 6... Bc5 {[%clk 0:03:07.8]}
7. a4 {[%clk 0:03:05.3]} 7... Rb8 {[%clk 0:03:08.8]} 8. c3 {[%clk 0:02:59.5]}
8... d6 {[%clk 0:03:09.7]} 9. d4 {[%clk 0:02:56.2]} 9... Bb6 {[%clk 0:03:10.8]}
10. axb5 {[%clk 0:02:35.4]} 10... axb5 {[%clk 0:03:12.7]} 11. Qd3 {[%clk
0:02:36.4]} 11... Bd7 {[%clk 0:03:05.4]} 12. Na3 {[%clk 0:02:21.5]} 12... O-O
{[%clk 0:02:58.2]} 13. Bg5 {[%clk 0:02:19.4]} 13... h6 {[%clk 0:02:57.6]} 14.
Bh4 {[%clk 0:02:11.8]} 14... g5 {[%clk 0:02:41]} 15. Bg3 {[%clk 0:02:12.7]}
15... Qe7 {[%clk 0:02:42.9]} 16. Rfe1 {[%clk 0:02:08.3]} 16... Rfe8 {[%clk
0:02:36.3]} 17. dxe5 {[%clk 0:02:05]} 17... Nxe5 {[%clk 0:02:32]} 18. Nxe5
{[%clk 0:02:04.7]} 18... dxe5 {[%clk 0:02:33.9]} 19. Nc2 {[%clk 0:01:57.1]}
19... Bc6 {[%clk 0:02:33.6]} 20. Nb4 {[%clk 0:01:48.6]} 20... Bb7 {[%clk
0:02:34.3]} 21. Nd5 {[%clk 0:01:48.7]} 21... Nxd5 {[%clk 0:02:33.1]} 22. exd5
{[%clk 0:01:46.8]} 22... e4 {[%clk 0:02:23.6]} 23. Qe2 {[%clk 0:01:31.1]} 23...
Kg7 {[%clk 0:02:15.3]} 24. Rad1 {[%clk 0:01:27.1]} 24... f5 {[%clk 0:02:16.3]}
25. d6 {[%clk 0:01:26.8]} 25... cxd6 {[%clk 0:02:18.2]} 26. Bxd6 {[%clk
0:01:26.8]} 26... Qf6 {[%clk 0:02:14.8]} 27. Bxb8 {[%clk 0:01:26.6]} 27... Rxb8
{[%clk 0:02:16.7]} 28. Rd7+ {[%clk 0:01:27.1]} 28... Kh8 {[%clk 0:02:15.3]} 29.
Qd2 {[%clk 0:01:22.3]} 29... Bc5 {[%clk 0:02:07.4]} 30. Rf7 {[%clk 0:01:10.8]}
30... Qg6 {[%clk 0:02:05.6]} 31. Rc7 {[%clk 0:00:48.2]} 31... Bb6 {[%clk
0:01:58.5]} 32. Rd7 {[%clk 0:00:47.5]} 32... Bc5 {[%clk 0:01:48.7]} 33. Rd8+
{[%clk 0:00:44.2]} 33... Rxd8 {[%clk 0:01:49.6]} 34. Qxd8+ {[%clk 0:00:45.3]}
34... Kh7 {[%clk 0:01:50.3]} 35. Rd1 {[%clk 0:00:39.2]} 35... Bc6 {[%clk
0:01:50.2]} 36. Qc7+ {[%clk 0:00:37.3]} 36... Kh8 {[%clk 0:01:47.2]} 37. Rd8+
{[%clk 0:00:37.3]} 37... Be8 {[%clk 0:01:46.6]} 38. Qxc5 {[%clk 0:00:35.6]} 1-0

[Event "*** Titled Tuesday Blitz"]
[Site "Chess.com"]
[Date "2019.04.02"]
[Round "4"]
[White "Alex_Molchanov"]
[Black "ace_mar"]
[Result "1-0"]
[WhiteElo "2462"]
[BlackElo "2270"]
[TimeControl "180+2"]
[EndTime "14:47:48 PDT"]
[Termination "Alex_Molchanov won by resignation"]

1. c4 {[%clk 0:03:01.9]} 1... e6 {[%clk 0:03:00.5]} 2. Nf3 {[%clk 0:03:02.2]}
2... d5 {[%clk 0:03:01.4]} 3. e3 {[%clk 0:03:03.5]} 3... Nf6 {[%clk 0:03:02.6]}
4. b3 {[%clk 0:03:05]} 4... Be7 {[%clk 0:03:02.3]} 5. Bb2 {[%clk 0:03:06.3]}
5... O-O {[%clk 0:03:03.2]} 6. Qc2 {[%clk 0:03:07.6]} 6... b6 {[%clk 0:03:00.7]}
7. Nc3 {[%clk 0:03:04.5]} 7... Bb7 {[%clk 0:03:00.2]} 8. cxd5 {[%clk 0:03:04.9]}
8... Nxd5 {[%clk 0:03:01.7]} 9. a3 {[%clk 0:03:03.3]} 9... Bf6 {[%clk
0:03:00.2]} 10. h4 {[%clk 0:03:00.4]} 10... Nd7 {[%clk 0:03:00.2]} 11. Ng5
{[%clk 0:02:56.9]} 11... g6 {[%clk 0:02:54]} 12. Bd3 {[%clk 0:02:49.2]} 12...
Nxc3 {[%clk 0:02:31.5]} 13. Bxc3 {[%clk 0:02:47]} 13... Bxc3 {[%clk 0:02:32]}
14. dxc3 {[%clk 0:02:35.7]} 14... Bxg2 {[%clk 0:02:24.6]} 15. Rg1 {[%clk
0:02:32.4]} 15... Bb7 {[%clk 0:02:17.7]} 16. h5 {[%clk 0:02:26.2]} 16... Ne5
{[%clk 0:02:16]} 17. Be4 {[%clk 0:02:22.8]} 17... Bxe4 {[%clk 0:02:13.4]} 18.
Qxe4 {[%clk 0:02:24.7]} 18... Qf6 {[%clk 0:02:06.6]} 19. hxg6 {[%clk 0:02:08.8]}
19... Nxg6 {[%clk 0:01:47]} 20. Qd4 {[%clk 0:02:06.8]} 20... Qxd4 {[%clk
0:01:46.6]} 21. cxd4 {[%clk 0:02:08.7]} 21... h6 {[%clk 0:01:32.1]} 22. Nxe6
{[%clk 0:02:07.9]} 22... Rfc8 {[%clk 0:01:16.7]} 23. Rc1 {[%clk 0:01:45.3]}
23... Kh7 {[%clk 0:01:15.1]} 24. Nxc7 {[%clk 0:01:44.9]} 24... Rab8 {[%clk
0:01:16.3]} 25. Kd2 {[%clk 0:01:44.3]} 25... Rb7 {[%clk 0:01:16.3]} 26. Nd5
{[%clk 0:01:39.4]} 26... Rd8 {[%clk 0:01:17.3]} 27. Nf6+ {[%clk 0:01:31.9]}
27... Kg7 {[%clk 0:01:18]} 28. Nh5+ {[%clk 0:01:30.2]} 28... Kh7 {[%clk
0:01:18]} 29. Nf6+ {[%clk 0:01:30.9]} 29... Kg7 {[%clk 0:01:18.7]} 30. Ne4
{[%clk 0:01:32.6]} 30... Re7 {[%clk 0:01:18.3]} 31. Ng3 {[%clk 0:01:33.5]} 31...
Kh7 {[%clk 0:01:15.1]} 32. Rh1 {[%clk 0:01:29.2]} 32... Rd5 {[%clk 0:01:10.6]}
33. Rc6 {[%clk 0:01:23.6]} 33... Red7 {[%clk 0:00:56.5]} 34. Ne4 {[%clk
0:01:20.9]} 34... Kg7 {[%clk 0:00:52.8]} 35. Nf6 {[%clk 0:01:18.6]} 35... R5d6
{[%clk 0:00:49.6]} 36. Rxd6 {[%clk 0:01:18]} 36... Rxd6 {[%clk 0:00:51.5]} 37.
Ne8+ {[%clk 0:01:19.3]} 1-0